fUSD/lending_fUSD_20260523
["ID","MTS","AMOUNT","RATE_DAILY","PERIOD"]
[422832455,1779491438000,-150.0,0.00010258,2]
[422832509,1779491438000,-150.0,0.00010507,2]
[422832504,1779491438000,-2450.5323,0.00010486,2]
[422832499,1779491438000,-392.03089,0.0001048,2]
[422832459,1779491438000,-150.0,0.00010258,2]
[422832469,1779491438000,-150.0,0.00010329,2]
[422832468,1779491438000,-150.0,0.00010329,2]
[422832471,1779491438000,-150.0,0.00010353,2]
[422832461,1779491438000,-1587.49,0.00010278,2]
[422832473,1779491438000,-945.859622,0.00010354,2]
[422832477,1779491438000,-423.681343,0.00010354,2]
[422832507,1779491438000,-150.0,0.00010501,2]
[422832466,1779491438000,-150.0,0.00010316,2]
[422832463,1779491438000,-150.0,0.0001028,2]
[422832475,1779491438000,-3539.199451,0.00010354,2]
[422832483,1779491438000,-150.0,0.00010427,2]
[422832485,1779491438000,-703.05,0.00010439,2]
[422832487,1779491438000,-392.03088,0.0001046,2]
[422832493,1779491438000,-150.0,0.00010471,2]
[422832489,1779491438000,-392.03089,0.0001046,2]
[422832495,1779491438000,-150.0,0.00010471,2]
[422832506,1779491438000,-199.883903,0.00010486,2]
[422832501,1779491438000,-496.074934,0.00010486,2]
[422832497,1779491438000,-150.0,0.00010471,2]
[422832481,1779491438000,-150.0,0.0001039,2]
[422832491,1779491438000,-150.0,0.00010464,2]
[422832724,1779491440000,-5409.39913664,0.00010565,2]
[422832722,1779491440000,-379.35,0.00010565,2]
[422833043,1779491442000,-5021.94769063,0.00010565,2]
[422833051,1779491445000,150.0,0.00011233,120]
[422833053,1779491446000,-33782.68408388,0.00010565,2]
[422833052,1779491446000,-2853.30916637,0.00010565,2]
[422833062,1779491540000,150.17,4.844e-05,2]
[422833063,1779491540000,150.17,5.099e-05,2]
[422833066,1779491540000,150.17,5.864e-05,2]
[422833065,1779491540000,150.17,5.609e-05,2]
[422833064,1779491540000,150.17,5.354e-05,2]
[422833069,1779491541000,150.17,6.629e-05,2]
[422833068,1779491541000,150.17,6.374e-05,2]
[422833067,1779491541000,150.17,6.119e-05,2]
[422833070,1779491541000,150.17,6.884e-05,2]
[422833075,1779491542000,150.17,8.159e-05,2]
[422833074,1779491542000,150.17,7.904e-05,2]
[422833073,1779491542000,150.17,7.649e-05,2]
[422833072,1779491542000,150.17,7.394e-05,2]
[422833071,1779491542000,150.17,7.139e-05,2]
[422833076,1779491543000,150.17,8.414e-05,2]
[422833078,1779491947000,201.0,0.000105,3]
[422833081,1779491991000,500.0,8.568e-05,2]
[422833082,1779492027000,1000.0,8.514e-05,2]
[422833083,1779492061000,256.778419,8.612e-05,2]
[422833084,1779492076000,-525.44,8.656e-05,2]
[422833085,1779492078000,721.0,0.00010257,5]
[422833087,1779492105000,916.0844984,8.542e-05,2]
[422833086,1779492105000,197.4555016,8.542e-05,2]
[422833088,1779492112000,500.0,8.542e-05,2]
[422833090,1779492176000,463.1,8.369e-05,2]
[422833091,1779492365000,500.0,8.323e-05,2]
[422833093,1779492371000,382.34536968,0.00024954,120]
[422833092,1779492371000,382.34536968,0.00024815,120]
[422833094,1779492427000,162.71,8.312e-05,2]
[422833111,1779492448000,1300.0,9.9e-05,3]
[422833112,1779492449000,2700.0,0.0001,3]
[422833113,1779492541000,1000.0,0.00027624,120]
[422833160,1779492632000,-500.0,9.119e-05,2]
[422833154,1779492632000,-5939.0,9.097e-05,2]
[422833158,1779492632000,-308.24299555,9.119e-05,2]
[422833152,1779492632000,-2144.0,9.066e-05,2]
[422833153,1779492632000,-5651.0,9.082e-05,2]
[422833150,1779492632000,-200998.8217,9.02e-05,2]
[422833147,1779492632000,-1200.0,9.019e-05,2]
[422833143,1779492632000,-174.0,8.919e-05,2]
[422833142,1779492632000,-1409.1958,8.904e-05,2]
[422833138,1779492632000,-25.954,8.746e-05,2]
[422833145,1779492632000,-300.0,9.019e-05,2]
[422833144,1779492632000,-150.17,8.924e-05,2]
[422833146,1779492632000,-157.0,9.019e-05,2]
[422833141,1779492632000,-351.1582,8.904e-05,2]
[422833148,1779492632000,-150.0,9.019e-05,2]
[422833139,1779492632000,-150.0,8.832e-05,2]
[422833137,1779492632000,-124.046,8.746e-05,2]
[422833135,1779492632000,-250.0,8.657e-05,2]
[422833134,1779492632000,-166.66,8.645e-05,2]
[422833136,1779492632000,-150.17,8.669e-05,2]
[422833161,1779492632000,-335.96565341,9.119e-05,2]
[422833140,1779492632000,-239.646,8.904e-05,2]
[422833151,1779492632000,-357.79140432,9.04e-05,2]
[422833149,1779492632000,-2354.2725,9.02e-05,2]
[422833155,1779492632000,-12701.0,9.106e-05,2]
[422833182,1779492632000,-463.60708434,9.67e-05,2]
[422833159,1779492632000,-500.0,9.119e-05,2]
[422833179,1779492632000,-9999.99,9.67e-05,2]
[422833178,1779492632000,-150.99,9.67e-05,2]
[422833181,1779492632000,-1254.41808677,9.67e-05,2]
[422833176,1779492632000,-479.89,9.644e-05,2]
[422833180,1779492632000,-10793.46689352,9.67e-05,2]
[422833175,1779492632000,-170.51484484,9.556e-05,2]
[422833177,1779492632000,-500.0,9.67e-05,2]
[422833173,1779492632000,-250.0,9.51e-05,2]
[422833171,1779492632000,-150.17,9.433e-05,2]
[422833169,1779492632000,-150.17,9.178e-05,2]
[422833174,1779492632000,-230.38062833,9.51e-05,2]
[422833168,1779492632000,-194136.6190395,9.12e-05,2]
[422833170,1779492632000,-463.1,9.415e-05,2]
[422833172,1779492632000,-250.0,9.51e-05,2]
[422833167,1779492632000,-39879.20972731,9.12e-05,2]
[422833165,1779492632000,-338963.07624992,9.12e-05,2]
[422833164,1779492632000,-498.06979293,9.119e-05,2]
[422833163,1779492632000,-438.84016349,9.119e-05,2]
[422833166,1779492632000,-44927.58288327,9.12e-05,2]
[422833162,1779492632000,-330.42901028,9.119e-05,2]
[422833157,1779492632000,-166.939,9.119e-05,2]
[422833156,1779492632000,-1724.57,9.119e-05,2]
[422833183,1779492633000,-379.17948859,9.67e-05,2]
[422833184,1779492633000,-419.7045,9.67e-05,2]
[422833188,1779492637000,-425.22336954,9.019e-05,2]
[422833189,1779492637000,-74.77663046,9.019e-05,2]
[422833225,1779492638000,-420.0,9.921e-05,2]
[422833229,1779492638000,-500.0,9.944e-05,2]
[422833231,1779492638000,-2000.0,0.00010017,2]
[422833217,1779492638000,-150.17,9.688e-05,2]
[422833219,1779492638000,-162.71,9.697e-05,2]
[422833221,1779492638000,-169.04,9.781e-05,2]
[422833239,1779492638000,-27506.27484168,0.00010034,2]
[422833223,1779492638000,-1680.0,9.921e-05,2]
[422833235,1779492638000,-3161.66,0.00010027,2]
[422833237,1779492638000,-638.64333,0.00010028,2]
[422833251,1779492638000,-19692.02684248,0.00010034,2]
[422833228,1779492638000,-2033.61431545,9.934e-05,2]
[422833233,1779492638000,-1383.50315685,0.00010024,2]
[422833227,1779492638000,-255.0,9.921e-05,2]
[422833192,1779492638000,-500.0,9.019e-05,2]
[422833211,1779492638000,-29999.99,9.67e-05,2]
[422833209,1779492638000,-6414.67448582,9.67e-05,2]
[422833213,1779492638000,-9999.99,9.67e-05,2]
[422833200,1779492638000,-550.74,9.67e-05,2]
[422833199,1779492638000,-1051.74850456,9.67e-05,2]
[422833197,1779492638000,-2622.27734249,9.67e-05,2]
[422833196,1779492638000,-200.0,9.329e-05,2]
[422833193,1779492638000,-500.0,9.019e-05,2]
[422833198,1779492638000,-6050.17361391,9.67e-05,2]
[422833195,1779492638000,-500.0,9.119e-05,2]
[422833194,1779492638000,-400.32041944,9.019e-05,2]
[422833190,1779492638000,-500.0,9.019e-05,2]
[422833250,1779492638000,-1905.34163015,0.00010034,2]
[422833215,1779492638000,-167.84,9.688e-05,2]
[422833249,1779492638000,-2619.26681935,0.00010034,2]
[422833273,1779492638000,-471.69861671,0.00010529,2]
[422833244,1779492638000,-469.73578931,0.00010034,2]
[422833252,1779492638000,-107980.6977443,0.00010034,2]
[422833278,1779492638000,-355.91033448,0.00010565,2]
[422833277,1779492638000,-252.07066793,0.00010565,2]
[422833276,1779492638000,-163.51453309,0.00010565,2]
[422833275,1779492638000,-108.04474868,0.00010562,2]
[422833274,1779492638000,-42.95525132,0.00010562,2]
[422833272,1779492638000,-534.27969911,0.00010529,2]
[422833271,1779492638000,-1900.0,0.00010529,2]
[422833270,1779492638000,-255.68168418,0.00010529,2]
[422833268,1779492638000,-499.59885036,0.0001051,2]
[422833269,1779492638000,-1363.37141964,0.0001051,2]
[422833266,1779492638000,-1862.97027,0.0001048,2]
[422833267,1779492638000,-500.0,0.00010492,2]
[422833259,1779492638000,-166.66,0.00010072,2]
[422833262,1779492638000,-3161.66,0.00010278,2]
[422833254,1779492638000,-236934.7518425,0.00010034,2]
[422833261,1779492638000,-500.0,0.00010218,2]
[422833255,1779492638000,-151.0,0.00010034,2]
[422833263,1779492638000,-1862.97026,0.0001046,2]
[422833258,1779492638000,-151.0,0.00010034,2]
[422833260,1779492638000,-696.32543239,0.0001019,2]
[422833264,1779492638000,-1862.97027,0.0001046,2]
[422833257,1779492638000,-151.0,0.00010034,2]
[422833256,1779492638000,-174.142519,0.00010034,2]
[422833265,1779492638000,-463.1,0.00010461,2]
[422833253,1779492638000,-172.7521575,0.00010034,2]
[422833241,1779492638000,-1268.32836985,0.00010034,2]
[422833248,1779492638000,-381.99543232,0.00010034,2]
[422833247,1779492638000,-950.93738016,0.00010034,2]
[422833284,1779492640000,-169.04,0.00010588,2]
[422833286,1779492640000,-197.81098472,0.00010647,2]
[422833280,1779492640000,-1507.05993552,0.00010565,2]
[422833285,1779492640000,-504.36737904,0.000106,2]
[422833283,1779492640000,-330.0,0.00010575,3]
[422833287,1779492640000,-275.0930254,0.00010697,2]
[422833281,1779492640000,-1862.97027,0.00010565,2]
[422833282,1779492640000,-26304.89390438,0.00010565,2]
[422833289,1779492640000,-274838.57802372,0.000107,2]
[422833288,1779492640000,-1098.07046974,0.00010699,3]
[422833328,1779492643000,-881.0,0.000107,2]
[422833327,1779492643000,-275.14764415,0.000107,2]
[422833321,1779492643000,-1092.3756609,0.000107,2]
[422833319,1779492643000,-168.04711195,0.00010565,2]
[422833335,1779492646000,-61500.22363959,0.000107,2]
[422833336,1779492646000,-280.87,0.000107,2]
[422833334,1779492646000,-1180.95304529,0.000107,2]
[422833338,1779492646000,-546.006,0.000107,2]
[422833339,1779492646000,-2892.06735989,0.000107,2]
[422833337,1779492646000,-1734.61950838,0.000107,2]
[422833344,1779492687000,250.0,0.00028082,120]
[422833345,1779493068000,288.54562663,0.00028082,120]
[422833350,1779493346000,237.56,5.379e-05,2]
[422833349,1779493346000,237.56,5.145e-05,2]
[422833348,1779493346000,237.56,4.911e-05,2]
[422833347,1779493346000,237.56,4.677e-05,2]
[422833346,1779493346000,237.56,4.443e-05,2]
[422833353,1779493347000,237.56,6.08e-05,2]
[422833352,1779493347000,237.56,5.846e-05,2]
[422833351,1779493347000,237.56,5.613e-05,2]
[422833355,1779493348000,237.56,6.548e-05,2]
[422833354,1779493348000,237.56,6.314e-05,2]
[422833357,1779493348000,237.56,7.016e-05,2]
[422833356,1779493348000,237.56,6.782e-05,2]
[422833358,1779493348000,237.56,7.25e-05,2]
[422833362,1779493349000,237.56,8.185e-05,2]
[422833361,1779493349000,237.56,7.951e-05,2]
[422833360,1779493349000,237.56,7.717e-05,2]
[422833359,1779493349000,237.56,7.483e-05,2]
[422833363,1779493350000,237.56,8.419e-05,2]
[422833365,1779493437000,2000.0,8.393e-05,2]
[422833366,1779493438000,500.0,8.393e-05,2]
[422833367,1779493545000,228.9,8.31e-05,2]
[422833368,1779493564000,509.93,8.318e-05,2]
[422833369,1779493632000,1334.19,8.288e-05,2]
[422833370,1779493669000,200.0,8.316e-05,2]
[422833371,1779493737000,500.0,8.259e-05,2]
[422833372,1779493739000,169533.73,8.259e-05,2]
[422833373,1779493740000,1000.0,0.00028081,120]
[422833376,1779493747000,929.1,8.225e-05,2]
[422833404,1779493835000,-3155.7924,8.897e-05,2]
[422833394,1779493835000,-237.56,8.653e-05,2]
[422833397,1779493835000,-4621.4706949,8.77e-05,2]
[422833395,1779493835000,-319.32,8.673e-05,2]
[422833393,1779493835000,-2236.97,8.648e-05,2]
[422833396,1779493835000,-250.0,8.77e-05,2]
[422833399,1779493835000,-150.0,8.856e-05,2]
[422833398,1779493835000,-250.0,8.844e-05,2]
[422833401,1779493835000,-1200.0,8.896e-05,2]
[422833402,1779493835000,-300.0,8.896e-05,2]
[422833403,1779493835000,-664.7106,8.897e-05,2]
[422833405,1779493835000,-7328.7798,8.897e-05,2]
[422833400,1779493835000,-237.56,8.887e-05,2]
[422833407,1779493835000,-5683.6804,8.897e-05,2]
[422833406,1779493835000,-615.9508,8.897e-05,2]
[422833415,1779493835000,-3695.0,9.069e-05,2]
[422833416,1779493835000,-150.0,9.119e-05,2]
[422833411,1779493835000,-166.35,8.949e-05,2]
[422833413,1779493835000,-150.0,9.032e-05,2]
[422833417,1779493835000,-166.66,9.137e-05,2]
[422833418,1779493835000,-3810.0,9.146e-05,2]
[422833412,1779493835000,-150.0,8.996e-05,2]
[422833410,1779493835000,-150.0,8.944e-05,2]
[422833409,1779493835000,-500.0,8.919e-05,2]
[422833408,1779493835000,-2500.0,8.897e-05,2]
[422833414,1779493835000,-1173.0,9.035e-05,2]
[422833447,1779493836000,-166.35,0.0001044,2]
[422833439,1779493836000,-350.0,0.00010243,2]
[422833440,1779493836000,-500.0,0.00010247,2]
[422833437,1779493836000,-1427.17,0.00010133,2]
[422833442,1779493836000,-1591.84,0.00010278,2]
[422833434,1779493836000,-255.0,9.896e-05,2]
[422833438,1779493836000,-250.0,0.00010184,2]
[422833436,1779493836000,-1623.41,0.00010133,2]
[422833445,1779493836000,-314.4,0.00010437,2]
[422833435,1779493836000,-1591.84,0.00010027,2]
[422833433,1779493836000,-500.0,9.836e-05,2]
[422833430,1779493836000,-43279.43817193,9.767e-05,2]
[422833431,1779493836000,-1680.0,9.786e-05,2]
[422833432,1779493836000,-420.0,9.786e-05,2]
[422833427,1779493836000,-13595.03,9.67e-05,2]
[422833428,1779493836000,-12201.56,9.67e-05,2]
[422833424,1779493836000,-2000.0,9.442e-05,2]
[422833425,1779493836000,-250.0,9.518e-05,2]
[422833423,1779493836000,-255.0,9.295e-05,2]
[422833422,1779493836000,-314.4,9.278e-05,2]
[422833419,1779493836000,-9942.0,9.155e-05,2]
[422833420,1779493836000,-7397.0,9.178e-05,2]
[422833457,1779493836000,-266.70226883,0.00010479,2]
[422833429,1779493836000,-289.27077046,9.67e-05,2]
[422833458,1779493836000,-2124.204288,0.0001048,2]
[422833421,1779493836000,-150.0,9.207e-05,2]
[422833460,1779493836000,-11747.9761697,0.0001048,2]
[422833449,1779493836000,-350.0,0.00010442,2]
[422833492,1779493836000,-1951.87210122,0.000107,2]
[422833494,1779493836000,-1016.35862345,0.000107,2]
[422833493,1779493836000,-646.62018074,0.000107,2]
[422833491,1779493836000,-326.80947795,0.000107,2]
[422833487,1779493836000,-164339.18226144,0.000107,2]
[422833485,1779493836000,-402.11590291,0.000107,2]
[422833490,1779493836000,-859.784997,0.000107,2]
[422833480,1779493836000,-994.49530886,0.000107,2]
[422833478,1779493836000,-1271.14161176,0.000107,2]
[422833474,1779493836000,-55297.74189355,0.000107,2]
[422833475,1779493836000,-31900.1769322,0.000107,2]
[422833426,1779493836000,-6331.88,9.67e-05,2]
[422833473,1779493836000,-5000.0,0.00010608,2]
[422833462,1779493836000,-73950.8952074,0.0001048,2]
[422833465,1779493836000,-2000.0,0.00010491,2]
[422833453,1779493836000,-166.93954989,0.0001046,2]
[422833455,1779493836000,-500.0,0.00010477,2]
[422833467,1779493836000,-1010.2319328,0.00010525,2]
[422833451,1779493836000,-1379.656,0.0001046,2]
[422833472,1779493836000,-1912.20128799,0.000106,2]
[422833469,1779493836000,-1591.84,0.00010529,2]
[422833471,1779493836000,-585.74960775,0.00010564,2]
[422833470,1779493836000,-1619.33,0.00010538,2]
[422833477,1779493836000,-3813.50657851,0.000107,2]
[422833468,1779493836000,-603.41940422,0.00010525,2]
[422833518,1779493838000,-1100.0,0.000108,3]
[422833519,1779493838000,-157.0,0.00010807,2]
[422833517,1779493838000,-1591.84,0.00010779,2]
[422833513,1779493838000,-350.0,0.00010714,2]
[422833510,1779493838000,-401.73290602,0.000107,2]
[422833509,1779493838000,-1000.0,0.000107,2]
[422833511,1779493838000,-58202.2690824,0.00010709,2]
[422833503,1779493838000,-1122.70891671,8.897e-05,2]
[422833506,1779493838000,-98799.36705819,0.000107,2]
[422833505,1779493838000,-1424735.55232829,8.897e-05,2]
[422833504,1779493838000,-796.213955,8.897e-05,2]
[422833522,1779493838000,-235.17595739,0.00010876,2]
[422833502,1779493838000,-2724.7365,8.897e-05,2]
[422833501,1779493838000,-360.7580165,0.000107,2]
[422833508,1779493838000,-151.0,0.000107,2]
[422833521,1779493838000,-231.3003072,0.00010876,2]
[422833499,1779493838000,-1432.72139523,0.000107,2]
[422833512,1779493838000,-330.0,0.00010712,3]
[422833520,1779493838000,-374.1152824,0.00010876,2]
[422833531,1779493838000,-4146.027101,0.00010877,2]
[422833533,1779493838000,-408.930459,0.00010877,2]
[422833526,1779493838000,-500.0,0.00010876,2]
[422833536,1779493838000,-1912.20128798,0.00010948,2]
[422833527,1779493838000,-8322.68201,0.00010877,2]
[422833535,1779493838000,-2300.0,0.000109,3]
[422833529,1779493838000,-1017.422707,0.00010877,2]
[422833507,1779493838000,-8897.52412277,0.000107,2]
[422833528,1779493838000,-1007.957368,0.00010877,2]
[422833534,1779493838000,-433.0,0.00010885,2]
[422833515,1779493838000,-2351.0,0.00010764,2]
[422833516,1779493838000,-587.0,0.00010764,2]
[422833514,1779493838000,-500.0,0.00010751,2]
[422833524,1779493838000,-500.0,0.00010876,2]
[422833525,1779493838000,-548.64885505,0.00010876,2]
[422833523,1779493838000,-215.77009689,0.00010876,2]
[422833564,1779493839000,-10998.31065332,0.00010985,2]
[422833562,1779493839000,-1581.4,0.00010966,2]
[422833548,1779493839000,-500.0,0.00010958,7]
[422833544,1779493839000,-500.0,0.00010958,5]
[422833546,1779493839000,-500.0,0.00010958,6]
[422833542,1779493839000,-500.0,0.00010958,4]
[422833554,1779493839000,-200.0,0.00010959,2]
[422833576,1779493839000,-162.71,0.00011082,2]
[422833552,1779493839000,-288.40013892,0.00010958,9]
[422833550,1779493839000,-500.0,0.00010958,8]
[422833540,1779493839000,-500.0,0.00010958,3]
[422833538,1779493839000,-500.0,0.00010958,2]
[422833558,1779493839000,-150.0,0.00010959,2]
[422833556,1779493839000,-200.0,0.00010959,2]
[422833560,1779493839000,-4544.12,0.00010959,2]
[422833574,1779493839000,-1591.84,0.0001103,2]
[422833568,1779493839000,-1743.09798468,0.00010999,2]
[422833591,1779493839000,-22115.79314918,0.00011099,2]
[422833595,1779493839000,-1206.63644529,0.00011099,2]
[422833589,1779493839000,-36129.40711099,0.00011099,2]
[422833599,1779493839000,-9023.40257529,0.00011099,2]
[422833598,1779493839000,-3783.57494122,0.00011099,2]
[422833600,1779493839000,-13539.04252434,0.00011099,2]
[422833570,1779493839000,-8379.95580379,0.00011,2]
[422833585,1779493839000,-582.0,0.00011099,5]
[422833582,1779493839000,-666.0,0.00011098,2]
[422833580,1779493839000,-183.39747785,0.00011098,2]
[422833572,1779493839000,-500.0,0.00011025,2]
[422833578,1779493839000,-500.0,0.00011096,2]
[422833587,1779493839000,-591.0,0.00011099,5]
[422833566,1779493839000,-6911.24866695,0.00010987,2]
[422833753,1779493840000,-377.02185521,0.00011099,2]
[422833995,1779493843000,-467.9684,0.00011099,2]
[422833996,1779493843000,-1155.26977686,0.00011099,2]
[422833993,1779493843000,-273.41488666,0.00010987,2]
[422833992,1779493843000,-1863.46178799,0.00010987,2]
[422833991,1779493843000,-1876.34357908,0.00010987,2]
[422833997,1779493843000,-642.76382386,0.00011099,2]
[422833994,1779493843000,-262.91465925,0.00010987,2]
[422834020,1779493846000,-568.185,0.00010987,2]
[422834026,1779493846000,-1944.51206963,0.00011099,2]
[422834025,1779493846000,-302.12,0.00011099,2]
[422834024,1779493846000,-3775.0,0.00011099,2]
[422834022,1779493846000,-2517.1183223,0.00010987,2]
[422834023,1779493846000,-2222.1526846,0.00011099,2]
[422834021,1779493846000,-275.59399998,0.00010987,2]
[422834115,1779493956000,200.0,8.9e-05,3]
[422834116,1779493959000,500.0,9e-05,3]
[422834117,1779493997000,-300.0,8.896e-05,2]
[422834118,1779494050000,-1103.725,8.719e-05,2]
[422834121,1779494075000,157.6,6.298e-05,2]
[422834120,1779494075000,157.6,5.773e-05,2]
[422834119,1779494075000,157.6,5.249e-05,2]
[422834125,1779494076000,157.6,8.398e-05,2]
[422834124,1779494076000,157.6,7.873e-05,2]
[422834123,1779494076000,157.6,7.348e-05,2]
[422834122,1779494076000,157.6,6.823e-05,2]
[422834126,1779494104000,-150.0,8.896e-05,2]
[422834127,1779494157000,-215.77009689,8.896e-05,2]
[422834128,1779494210000,-1200.0,8.896e-05,2]
[422834132,1779494263000,-500.0,8.896e-05,2]
[422834134,1779494317000,-2500.0,8.797e-05,2]
[422834135,1779494370000,-638.28429047,8.896e-05,2]
[422834137,1779494424000,-1200.0,8.796e-05,2]
[422834140,1779494452000,173.88,7.543e-05,2]
[422834141,1779494477000,-300.0,8.796e-05,2]
[422834142,1779494507000,849.0,0.00010053,5]
[422834154,1779494834000,-233.0,8.796e-05,2]
[422834156,1779494835000,2400.0,9e-05,3]
[422834155,1779494835000,1200.0,8.9e-05,3]
[422834159,1779494888000,-1200.0,8.796e-05,2]
[422834161,1779494896000,161.65,4.702e-05,2]
[422834163,1779494896000,161.65,7.053e-05,2]
[422834164,1779494896000,161.65,8.228e-05,2]
[422834162,1779494896000,161.65,5.877e-05,2]
[422834168,1779494942000,1000.0,0.0002808,120]
[422834167,1779494942000,-150.0,8.796e-05,2]
[422834169,1779494995000,-300.0,8.796e-05,2]
[422834175,1779495033000,-335.0,8.752e-05,2]
[422834173,1779495033000,-1110.61079819,8.752e-05,2]
[422834174,1779495033000,-512.90085166,8.752e-05,2]
[422834183,1779495034000,-3303.7048,8.797e-05,2]
[422834185,1779495034000,-312.75524391,8.824e-05,2]
[422834184,1779495034000,-192.99668422,8.797e-05,2]
[422834182,1779495034000,-2500.0,8.797e-05,2]
[422834181,1779495034000,-33202.0309,8.797e-05,2]
[422834188,1779495034000,-151.0,8.894e-05,2]
[422834179,1779495034000,-300.0,8.796e-05,2]
[422834178,1779495034000,-1200.0,8.796e-05,2]
[422834177,1779495034000,-300.0,8.796e-05,2]
[422834186,1779495034000,-150.0,8.838e-05,2]
[422834176,1779495034000,-2004.23219215,8.752e-05,2]
[422834180,1779495034000,-250.0,8.796e-05,2]
[422834194,1779495034000,-341.348914,8.897e-05,2]
[422834205,1779495034000,-808.11866524,8.897e-05,2]
[422834198,1779495034000,-1159.94357071,8.897e-05,2]
[422834195,1779495034000,-3459.21954555,8.897e-05,2]
[422834201,1779495034000,-719.52552339,8.897e-05,2]
[422834203,1779495034000,-2434.79182097,8.897e-05,2]
[422834200,1779495034000,-985.20374786,8.897e-05,2]
[422834192,1779495034000,-2886.20911339,8.897e-05,2]
[422834206,1779495034000,-26708.99451088,8.897e-05,2]
[422834193,1779495034000,-2642.63241699,8.897e-05,2]
[422834190,1779495034000,-33457.64005597,8.897e-05,2]
[422834187,1779495034000,-208.7374384,8.843e-05,2]
[422834202,1779495034000,-1284.18884217,8.897e-05,2]
[422834191,1779495034000,-3437.50377379,8.897e-05,2]
[422834189,1779495034000,-156984.04043613,8.897e-05,2]
[422834267,1779495048000,-570.19092633,8.697e-05,2]
[422834266,1779495048000,-123276.18356397,8.697e-05,2]
[422834265,1779495048000,-370.59186541,8.697e-05,2]
[422834261,1779495048000,-158629.54334008,8.897e-05,2]
[422834263,1779495048000,-11384.10002859,8.897e-05,2]
[422834262,1779495048000,-3153.50367141,8.897e-05,2]
[422834260,1779495048000,-979.55262514,8.897e-05,2]
[422834259,1779495048000,-13539.04252434,8.897e-05,2]
[422834264,1779495048000,-2106.24885232,8.697e-05,2]
[422834268,1779495049000,-1085.83342391,8.697e-05,2]
[422834269,1779495049000,-4805.23855489,8.697e-05,2]
[422834270,1779495069000,-9023.40257529,8.697e-05,2]
[422834273,1779495220000,500.0,0.0002763,120]
[422834274,1779495239000,670.49062066,0.00027354,120]
[422834275,1779495312000,173.59698994,0.00027,120]
[422834276,1779495511000,218.91,8.632e-05,2]
[422834277,1779495516000,170.01,8.64e-05,2]
[422834278,1779495589000,1050.0,0.0001,3]
[422834280,1779495644000,1006.0,0.0001,4]
[422834282,1779495816000,156.32,4.308e-05,2]
[422834283,1779495816000,156.32,4.7e-05,2]
[422834285,1779495816000,156.32,5.483e-05,2]
[422834284,1779495816000,156.32,5.091e-05,2]
[422834290,1779495817000,156.32,7.441e-05,2]
[422834289,1779495817000,156.32,7.049e-05,2]
[422834288,1779495817000,156.32,6.658e-05,2]
[422834287,1779495817000,156.32,6.266e-05,2]
[422834286,1779495817000,156.32,5.875e-05,2]
[422834291,1779495818000,156.32,7.833e-05,2]
[422834293,1779495818000,156.32,8.616e-05,2]
[422834292,1779495818000,156.32,8.224e-05,2]
[422834294,1779495908000,1000.0,8.634e-05,2]
[422834297,1779496128000,844909.4705,8.597e-05,2]
[422834298,1779496140000,1000.0,0.00028079,120]
[422834335,1779496234000,-208.7374384,8.853e-05,2]
[422834333,1779496234000,-154.13188387,8.843e-05,2]
[422834337,1779496234000,-163.31,8.876e-05,2]
[422834329,1779496234000,-3479.9002313,8.843e-05,2]
[422834346,1779496234000,-166.35,9.332e-05,2]
[422834347,1779496234000,-161.65,9.404e-05,2]
[422834344,1779496234000,-250.0,8.977e-05,2]
[422834342,1779496234000,-157.6,8.922e-05,2]
[422834348,1779496234000,-157.6,9.447e-05,2]
[422834349,1779496234000,-250.0,9.517e-05,2]
[422834352,1779496234000,-191.53533937,9.528e-05,2]
[422834354,1779496234000,-1680.0,9.543e-05,2]
[422834355,1779496234000,-420.0,9.551e-05,2]
[422834353,1779496234000,-369.36,9.536e-05,2]
[422834350,1779496234000,-361.98,9.518e-05,2]
[422834356,1779496234000,-319.0,9.551e-05,2]